Cogmind - Beta 11.1 @@@ ROGUE MODE // 2022.05.01 @ 02:16:01 Player: aperiodic Result: Destroyed by X-77 Beamer with Gatling Laser Performance ------------- Evolutions (6) 3000 Regions Visited (27) 5400 Robots Destroyed (440) 2200 Value Destroyed (15424) 15424 Prototype IDs (97) 1940 Alien Tech Used (0) 0 Bonus (3642) 3642 TOTAL SCORE: 31606 Bonus ------- High Alert Combat Kills 1881 Follower Combat Kills 1084 Aligned with FarCom 300 Met Data Miner 300 Met Warlord at Base 500 MAIN.C Attacked Warlord 500 Warlord Defense Kill 388 Friendly Fire -1311 Cogmind --------- Core Integrity 0/1150 Matter 700/700 Energy 676/700 System Corruption 0% Temperature Cool (6) Movement Core (300) Ox5 Location -4/Factory Parts ------- > --- POWER (2) -------- (None) > --- PROPULSION (2) --- (None) > --- UTILITY (11) ----- Experimental Energy Well Advanced Matter Compressor Transport Network Coupler Advanced Hacking Suite System Mapper Improved Trap Extractor (0/6) > --- WEAPON (4) ------- RU-N14's Throwing Claymores > --- INVENTORY (5) ---- Bomb Factory No. 2 Tri-rail Accelerator CR-A16's Behemoth Slayer Peak State ------------ > --- POWER ------------ Vortex Chain Reactor > --- PROPULSION ------- Armored Huge Wheel > --- UTILITY ---------- Huge Storage Unit Experimental Core Analyzer Damper Plating Improved Powered Armor Improved Powered Armor Thermal Barrier Advanced Hacking Suite System Mapper > --- WEAPON ----------- Tri-rail Accelerator Tri-rail Accelerator > --- INVENTORY -------- Armored Huge Wheel Experimental Energy Well Experimental Energy Well Improved Utility Shielding ME-RLN's Chromatic Screen Long-range Tractor Beam Improved Trap Extractor Hacking Drone Bay Bomb Factory No. 2 Cooled Plasma Cannon Mini Smartbomb Launcher ME-RLN's Wand Improved Plasma Cutter RU-N14's Throwing Claymores RU-N14's Throwing Claymores CR-A16's Behemoth Slayer [Rating: 139] Favorites ----------- Power Reinforced Fission Core Engine Heavy Ion Engine Power Core Reinforced Fission Core Reactor Antimatter Reactor Propulsion Compact Wheel Treads Improved Treads Wheel Compact Wheel Utility System Mapper Device Improved Cooling System Storage Huge Storage Unit Processor Experimental Core Analyzer Hackware System Mapper Protection Improved Light Armor Plating Weapon Cooled Particle Cannon Energy Gun Improved EM Shotgun Energy Cannon Cooled Particle Cannon Ballistic Gun Improved Assault Rifle Ballistic Cannon Tri-rail Accelerator Launcher Mini Smartbomb Launcher Special Weapon Plasma Cutter Slashing Weapon Axe Piercing Weapon CR-A16's Pointy Stick Build | -11 -10 -10 -9 -9 -9 -8 -8 -7 -7 -7 -7 -6 -6 -6 -6 -6 -6 -6 -5 -5 -5 -5 -5 -4 -4 -4 -4 ------- Run | Scr Mat Min Mat Min Exi Min Mat Fac Low Low Zio Pro Fac Was Fac Low Low Dat Pro Fac Upp Upp War Pro Fac Was Fac Slots Evolved 12 | . . . 2 . . . 2 2 . . . . 2 . . . . . . 2 . . . . 2 . . Power 1 | . . . . . . . . . . . . . . . . . . . . . . . . . 1 . . Propulsion . | . . . . . . . . . . . . . . . . . . . . . . . . . . . . Utility 9 | . . . 1 . . . 2 2 . . . . 1 . . . . . . 2 . . . . 1 . . Weapon 2 | . . . 1 . . . . . . . . . 1 . . . . . . . . . . . . . . Parts Attached 376 | 8 20 5 20 . 25 20 40 31 4 7 25 8 25 10 11 9 7 4 9 18 3 2 12 2 15 1 35 Power 15 | 1 . . 1 . 5 . 1 . . . 1 . 1 1 . . . . . 1 . . . . 1 . 2 Engine 5 | 1 . . 1 . 2 . . . . . . . . . . . . . . . . . . . . . 1 Core 5 | . . . . . 2 . 1 . . . . . 1 . . . . . . 1 . . . . . . . Reactor 5 | . . . . . 1 . . . . . 1 . . 1 . . . . . . . . . . 1 . 1 Propulsion 49 | 2 8 . 4 . 3 6 9 3 . 1 1 . 4 2 . 1 . . . 2 . . 2 . . . 1 Treads 11 | . 4 . 3 . 1 2 . . . . . . . 1 . . . . . . . . . . . . . Leg . | . . . . . . . . . . . . . . . . . . . . . . . . . . . . Wheel 38 | 2 4 . 1 . 2 4 9 3 . 1 1 . 4 1 . 1 . . . 2 . . 2 . . . 1 Hover . | . . . . . . . . . . . . . . . . . . . . . . . . . . . . Flight . | . . . . . . . . . . . . . . . . . . . . . . . . . . . . Utility 161 | 2 5 1 4 . 5 7 19 15 2 3 14 6 10 5 1 1 5 . 2 10 2 . 9 2 12 1 18 Device 69 | 1 1 . 2 . 1 1 3 4 . 1 5 3 5 2 1 1 5 . 2 3 2 . 7 2 7 . 10 Storage 18 | 1 3 . 1 . 1 2 2 1 . . . 1 1 2 . . . . . 1 . . . . . . 2 Processor 11 | . . . . . . . . 1 . . 4 . 2 . . . . . . 1 . . 1 . 1 . 1 Hackware 6 | . . . . . . . 5 . . . . . . . . . . . . 1 . . . . . . . Protection 57 | . 1 1 1 . 3 4 9 9 2 2 5 2 2 1 . . . . . 4 . . 1 . 4 1 5 Artifact . | . . . . . . . . . . . . . . . . . . . . . . . . . . . . Weapon 151 | 3 7 4 11 . 12 7 11 13 2 3 9 2 10 2 10 7 2 4 7 5 1 2 1 . 2 . 14 Energy Gun 14 | 1 . . 3 . . . . . . . . . 5 2 3 . . . . . . . . . . . . Energy Cannon 53 | . . . 1 . . . 3 9 1 2 5 1 3 . 7 4 1 4 4 3 . . 1 . . . 4 Ballistic Gun 40 | 2 5 3 5 . 10 6 7 . . . . . 1 . . . . . . 1 . . . . . . . Ballistic Cannon 7 | . . . . . . . . 1 . . . . . . . . . . . . . . . . 2 . 4 Launcher 19 | . 1 1 1 . 2 . 1 3 1 1 . 1 . . . . . . . 1 1 1 . . . . 4 Special Weapon 13 | . 1 . 1 . . 1 . . . . 2 . 1 . . 2 1 . 2 . . 1 . . . . 1 Impact Weapon . | . . . . . . . . . . . . . . . . . . . . . . . . . . . . Slashing Weapon 1 | . . . . . . . . . . . 1 . . . . . . . . . . . . . . . . Piercing Weapon 4 | . . . . . . . . . . . 1 . . . . 1 . . 1 . . . . . . . 1 Special Melee Weapon . | . . . . . . . . . . . . . . . . . . . . . . . . . . . . Unidentified Prototypes 36 | . 1 . 3 . 4 4 2 1 . . 8 . 3 2 1 . . . . 1 . . 3 . 1 . 2 Parts Lost 46 | . 1 . 2 . 1 3 5 2 2 1 1 1 7 . . . . . . 3 . . . 1 . . 16 Power 3 | . . . . . . . . . . . . . 1 . . . . . . . . . . . . . 2 Propulsion 8 | . . . 1 . . 1 2 . . . . . 2 . . . . . . . . . . . . . 2 Utility 23 | . . . 1 . . 1 1 2 2 1 1 1 3 . . . . . . 1 . . . . . . 9 Weapon 12 | . 1 . . . 1 1 2 . . . . . 1 . . . . . . 2 . . . 1 . . 3 Highest Loss Streak 9 | . 1 . 2 . 1 2 2 2 1 1 1 1 3 . . . . . . 1 . . . 1 . . 9 To Critical Strikes 1 | . . . . . 1 . . . . . . . . . . . . . . . . . . . . . . Average Slot Usage (%) 89 | . 100 99 99 100 95 96 97 99 96 99 97 97 75 69 54 72 72 52 73 82 88 88 87 85 74 67 64 Engine 2 | . 14 14 11 11 8 . . . . . . . . . . . . . . . . . . . . . . Core 3 | . . . . . 2 11 8 7 7 7 4 . . . . . . . . . 5 5 5 5 . . . Reactor 1 | . . . . . . . . . . . 2 7 5 5 6 6 6 6 6 4 . . . . 5 5 4 Treads 3 | . 12 . 17 22 17 8 . . . . . . . . . . . . . . . . . . . . . Wheel 10 | . 15 28 4 . 4 12 16 15 15 15 15 15 7 6 6 6 6 6 6 5 5 5 5 5 5 5 4 Device 9 | . 11 . 4 11 3 . 6 14 18 15 13 15 19 10 . 5 5 6 6 10 11 11 10 10 9 10 8 Storage 8 | . 14 14 11 11 11 10 9 7 7 7 7 7 9 11 6 6 6 6 6 5 5 5 5 5 5 5 8 Processor 3 | . . . . . . . . . . . 2 7 11 18 12 6 6 6 6 5 5 5 5 5 8 10 4 Hackware 7 | . . . . . . . 17 10 7 7 7 7 6 6 6 6 6 6 6 11 11 11 11 11 10 10 10 Protection 13 | . 2 13 17 11 18 20 11 19 15 22 20 10 3 1 6 6 6 6 6 11 17 17 17 17 16 9 8 Energy Gun 2 | . 1 . 18 33 8 . . . . . . . 5 6 5 . . . . . . . . . . . . Energy Cannon 11 | . . . . . . . 13 22 22 22 20 22 2 . 2 24 25 6 25 20 11 11 12 14 3 . 2 Ballistic Gun 6 | . 25 27 14 . 18 31 13 . . . . . . . . . . . . 2 5 5 3 . . . . Naked Turns . | . . . . . . . . . . . . . . . . . . . . . . . . . . . . Heaviest Build 216 | 13 32 36 67 63 81 81 93 144 144 148 148 151 132 161 175 175 178 175 178 187 159 155 157 157 194 197 216 Greatest Support 46 | 20 46 20 46 46 46 46 32 32 32 32 38 32 32 28 28 28 28 28 28 28 28 28 28 28 28 28 28 Greatest Overweight (x) 40 | . 1 1 6 1 8 8 5 4 4 4 5 4 40 5 6 6 6 6 6 6 5 5 5 5 6 7 31 Average Overweight (x) 3 | . . 1 1 1 3 4 3 3 4 4 3 4 4 4 5 5 6 5 6 5 5 5 5 5 6 6 5 Largest Inventory Capacity 25 | 8 15 15 20 20 20 20 20 25 25 25 25 25 25 25 25 25 25 25 25 25 25 25 25 25 25 25 25 Average Capacity 22 | 6 12 15 17 20 20 18 20 22 25 25 25 25 25 25 25 25 25 25 25 25 25 25 25 25 25 25 24 Most Carried 25 | 5 15 14 20 20 20 20 20 25 25 25 25 25 25 25 25 24 25 25 25 25 25 25 25 25 25 25 25 Average Carried 21 | 2 9 13 16 20 16 17 19 21 24 24 23 24 23 24 24 23 24 25 25 21 25 25 24 25 23 24 18 Final Capacity 25 | 8 15 15 20 20 20 20 20 25 25 25 25 25 25 25 25 25 25 25 25 25 25 25 25 25 25 25 5 Final Carried 25 | 5 14 14 20 20 20 20 20 25 24 25 25 25 24 25 24 24 25 25 25 25 25 25 25 25 24 25 5 Class Distribution -------------------- 21% | Hacker-Tank 16% | Scavenger-Tank 14% | Tank 11% | Scavenger-Gunner 10% | Hacker-Mutant 10% | Mutant 9% | Hacker-Gunner 6% | Scavenger-Mutant Dominant Class ---------------- Mutant | -10/Materials Mutant | -10/Mines Tank | -9/Materials Tank | -9/Mines Tank | -9/Exiles Tank | -8/Mines Scavenger-Tank | -8/Materials Scavenger-Tank | -7/Factory Scavenger-Tank | -7/Lower Caves Scavenger-Tank | -7/Lower Caves Scavenger-Mutant | -7/Zion Hacker-Tank | -6/Proximity Caves Scavenger-Gunner | -6/Factory Scavenger-Gunner | -6/Waste Hacker-Gunner | -6/Factory Scavenger-Gunner | -6/Lower Caves Hacker-Tank | -6/Lower Caves Scavenger-Mutant | -6/Data Miner Scavenger-Gunner | -5/Proximity Caves Hacker-Tank | -5/Factory Hacker-Mutant | -5/Upper Caves Hacker-Mutant | -5/Upper Caves Hacker-Mutant | -5/Warlord Hacker-Mutant | -4/Proximity Caves Hacker-Tank | -4/Factory Hacker-Gunner | -4/Waste Hacker-Mutant | -4/Factory Resources | -11 -10 -10 -9 -9 -9 -8 -8 -7 -7 -7 -7 -6 -6 -6 -6 -6 -6 -6 -5 -5 -5 -5 -5 -4 -4 -4 -4 ----------- Run | Scr Mat Min Mat Min Exi Min Mat Fac Low Low Zio Pro Fac Was Fac Low Low Dat Pro Fac Upp Upp War Pro Fac Was Fac Matter Collected 11175 | 267 390 314 486 . 851 821 1339 445 51 153 149 562 452 193 106 155 115 . 129 326 253 272 170 115 491 384 2186 Remotely 2578 | . . . . . . . . . . . . . . . . . 37 . . . 21 . 158 . 393 . 1969 Salvage Created 19537 | 146 463 188 840 205 452 292 2074 1697 322 113 . 599 1805 1792 573 232 80 . 421 2033 194 310 91 142 617 1410 2446 Parts 831 | 9 43 10 44 13 61 20 91 95 9 2 . 30 92 26 28 14 4 . 27 62 10 8 1 2 21 5 104 Haulers Intercepted 17 | . 1 . 2 . . . 4 2 . . . . 1 . 1 . . . . 1 . . . . . . 5 Recyclers Shooed 20 | . . 1 . 3 . . 4 1 . . . . 3 . . . . . . 3 . . . . . . 5 Parts Field Recycled . | . . . . . . . . . . . . . . . . . . . . . . . . . . . . Retrieved Matter . | . . . . . . . . . . . . . . . . . . . . . . . . . . . . Parts Self-Destructed 165 | . . . . . . . . . 9 1 3 31 . . . 10 2 . 33 . 8 10 56 2 . . . Prevented 3 | . . . . . . . . . . . . . . . . . . . . . . . 3 . . . . Kills | -11 -10 -10 -9 -9 -9 -8 -8 -7 -7 -7 -7 -6 -6 -6 -6 -6 -6 -6 -5 -5 -5 -5 -5 -4 -4 -4 -4 ------- Run | Scr Mat Min Mat Min Exi Min Mat Fac Low Low Zio Pro Fac Was Fac Low Low Dat Pro Fac Upp Upp War Pro Fac Was Fac Combat Hostiles Destroyed 299 | . 12 7 17 6 5 5 26 32 6 3 . 12 21 6 1 8 3 . 13 27 12 8 3 3 11 6 46 Guns 85 | . 9 4 13 5 2 5 19 . . . . . 19 6 1 . . . . 1 . 1 . . . . . Cannons 104 | . . . . . . . 5 19 4 2 . 9 1 . . 4 1 . 5 20 1 1 . 1 5 6 20 AOE 99 | . 3 3 4 1 3 . 2 12 2 1 . 2 . . . 3 2 . 7 3 11 6 3 2 6 . 23 Classes Destroyed 25 | 2 7 1 2 . 2 1 1 2 . . . . . 2 . 1 . . . . . . . . . . 4 Worker 26 | . 1 1 . . . 3 1 . . . . . 9 . 1 . . . . . . . . . 2 . 8 Builder 28 | . 1 . 1 1 . 1 2 1 . . . . 3 . 3 . . . . 2 . . . . . . 13 Tunneler 4 | 2 . . . . . . . 1 . . . . . . . . . . . . . . . . 1 . . Hauler 17 | . 1 . 2 . . . 4 2 . . . . 1 . 1 . . . . 1 . . . . . . 5 Recycler 29 | 1 1 1 2 . . . 9 4 . . . . 4 . 1 . . . . 3 . . . . 1 . 2 Mechanic 2 | . . . . . . . 1 . . . . . . . . . . . . . . . . . . . 1 Operator 4 | . 1 . . . . . 3 . . . . . . . . . . . . . . . . . . . . Turret 1 | . . . . . 1 . . . . . . . . . . . . . . . . . . . . . . Watcher 19 | . 3 . 2 . . . 4 3 . . . . 2 . 1 . . . . 1 . . . . 1 . 2 Swarmer 79 | . 6 3 4 3 . 2 3 8 . 1 . 4 7 . . 5 2 . 8 8 5 . . . . . 10 Saboteur 1 | . . . . . . . . . . . . . . . . . . . . . . . . . . . 1 Grunt 111 | . 6 2 11 2 . 1 18 12 3 1 . 4 4 . 1 1 . . 1 11 7 4 2 . 4 . 16 Brawler 5 | . . . . . . . . 1 1 . . . . . . . . . . . . 2 . 1 . . . Duelist 7 | . . . 1 1 . . 1 . . . . . 1 . . . . . . 1 . . . 1 . . 1 Sentry 27 | . . . 1 . . . 4 3 2 1 . 1 3 . . 1 1 . 1 4 . 1 . 1 . . 3 Specialist 1 | . . . . . . . . . . . . . . . . . . . . . . . . . . . 1 Hunter 22 | . . . . . . 2 . 4 . . . 2 2 . . . . . 2 1 . . 1 . 2 . 6 Programmer 22 | . . . . . . . . 4 . . . 1 4 . . . . . . 2 . 1 . . 5 . 5 Heavy 1 | . . . . . . . . . . . . . . . . . . . . . . . . . . . 1 Behemoth 3 | . . . . . . . . . . . . . . . . 1 . . 1 . . . . . . . 1 Compactor 12 | . . . . . . . . . . . . . . 6 . . . . . . . . . . . 6 . Executioner 1 | . . . . . . . . . . . . . . . . . . . . . . . . . . . 1 Zionite 8 | . . . . . 8 . . . . . . . . . . . . . . . . . . . . . . Assembled 6 | . . 2 . . 4 . . . . . . . . . . . . . . . . . . . . . . Wasp 1 | . . . . . . . . . . . . . . . 1 . . . . . . . . . . . . Thug 4 | . . . . . . . . . . . . 1 . . 2 . . . . . . . . . . 1 . Martyr 2 | . . . . . . . . . . . . . . 2 . . . . . . . . . . . . . Best Kill Streak 18 | 3 7 4 5 3 6 3 9 11 4 2 . 3 8 2 3 4 3 . 4 4 5 4 2 3 4 3 18 Combat Bots Only 12 | . 3 3 4 3 3 2 9 8 4 2 . 3 4 2 1 4 3 . 4 4 5 4 2 3 4 3 12 Max Kills in Single Turn 6 | 1 3 4 3 2 2 1 2 3 2 1 . 1 2 1 2 2 2 . 3 4 3 2 2 1 3 2 6 Gunslinging 1 | . 1 . . 1 . . . . . . . . . . . . . . . . . . . . . . . Exploded 3 | . 2 3 2 1 2 . 1 3 2 1 . 1 . . . 2 2 . 2 3 3 2 2 1 3 . 3 Melee . | . . . . . . . . . . . . . . . . . . . . . . . . . . . . Uniques/NPCs Destroyed 4 | . . . . . 4 . . . . . . . . . . . . . . . . . . . . . . 8R-AWN (-9/Exiles) EX-BIN (-9/Exiles) EX-DEC (-9/Exiles) EX-HEX (-9/Exiles) Combat | -11 -10 -10 -9 -9 -9 -8 -8 -7 -7 -7 -7 -6 -6 -6 -6 -6 -6 -6 -5 -5 -5 -5 -5 -4 -4 -4 -4 -------- Run | Scr Mat Min Mat Min Exi Min Mat Fac Low Low Zio Pro Fac Was Fac Low Low Dat Pro Fac Upp Upp War Pro Fac Was Fac Damage Taken 16262 | . 195 226 380 125 636 882 1489 1291 330 149 . 454 1033 . 200 1239 54 . 238 1107 188 234 . 68 548 35 5161 Core 2478 | . 53 109 56 9 24 91 212 107 61 4 . 76 151 . 12 158 . . 24 107 42 15 . 17 37 . 1113 Absorbed by Shields 1289 | . . . . . . . . 265 78 . . . . . . . . . 45 370 69 84 . 24 143 13 198 Redirected to Shielding 107 | . . . . . . . . . . . . . . . . . . . . 17 . . . . 24 . 66 Regen/Repaired (Parts) 994 | . 78 . . . . . 518 261 . . . . . . . . . . . 137 . . . . . . . Core Remaining (%) 65 | 100 . 35 . . . 55 61 . . . . 64 . . . . . . 59 . . . . 81 . . . Volleys Fired 803 | 5 34 24 38 7 56 39 111 67 21 11 2 25 62 16 17 7 2 . 14 57 11 12 14 5 23 20 103 Largest 4 | 2 2 2 3 3 3 3 3 3 3 3 1 3 3 1 1 4 3 . 4 4 3 3 1 2 2 2 3 Hottest 270 | 60 100 46 135 135 76 76 90 156 210 150 90 210 270 250 250 140 105 . 210 140 105 175 80 210 120 120 267 Shots Fired 1766 | 10 62 37 110 21 125 111 306 185 57 33 2 63 72 16 18 13 4 . 38 200 13 20 14 6 43 40 147 Gun 757 | 10 56 36 107 21 122 111 200 . . . . . 43 16 9 . . . . 21 1 4 . . . . . Cannon 905 | . . . . . . . 100 175 55 30 2 57 28 . 9 8 3 . 32 179 2 8 12 2 40 40 123 Launcher 79 | . 2 1 1 . 3 . 6 10 2 3 . 6 . . . . . . . . 10 8 2 4 3 . 18 Special 25 | . 4 . 2 . . . . . . . . . 1 . . 5 1 . 6 . . . . . . . 6 Kinetic 809 | 5 56 36 74 . 122 111 200 . . . . . . . . . . . . 21 1 4 . . 40 40 99 Thermal 785 | 5 4 . 2 . . . 100 175 55 30 2 57 71 16 18 8 3 . 32 179 2 8 12 2 . . 4 Explosive 97 | . 2 1 1 . 3 . 6 10 2 3 . 6 . . . 5 1 . 6 . 10 8 2 4 3 . 24 Electromagnetic 74 | . . . 33 21 . . . . . . . . . . . . . . . . . . . . . . 20 Robot Hit Streak 34 | 2 11 11 13 6 34 12 17 17 7 13 . 8 18 12 9 5 8 . 10 15 4 10 . 6 9 12 11 Robot Miss Streak 13 | 2 6 4 8 2 3 4 7 3 3 1 . 2 6 7 13 3 . . 2 5 . 2 . . 5 3 6 Penetration Max 2 | . . . . . 2 . . . . . . . . . . . . . . 1 . . . . . . . Secondary Targets 4 | . 1 1 1 1 . . . . . . . . . . . . . . . . . . . . . . . Max Gunslinging Chain 1 | . 1 1 1 1 . . . . . . . . . . . . . . . . . . . . . . . Autonomous 30 | . . . . . 30 . . . . . . . . . . . . . . . . . . . . . . Shots Hit Robots 1073 | 4 42 25 77 20 86 68 177 100 26 9 . 30 51 14 9 15 3 . 19 109 1 11 . 2 32 32 111 Core Hits 842 | 4 30 14 47 11 34 18 92 72 12 6 . 22 79 41 21 9 4 . 17 48 24 20 8 8 35 20 146 Critical Kills 14 | . . . . . 4 1 . . . . . . . . . . . . . 8 . 1 . . . . . Critical Parts Destroyed 14 | . 1 1 2 . 3 3 2 . . . . . . . . . . . . 2 . . . . . . . Critical Strikes 39 | . 1 1 2 . 7 4 2 . . . . . . . . . 1 . . 10 . 1 . . 6 . 4 Meltdown 5 | . . . . . . . . . . . . . . . . . . . . 5 . . . . . . . Destroy 23 | . 1 1 2 . 7 4 2 . . . . . . . . . . . . 5 . 1 . . . . . Blast 8 | . . . . . . . . . . . . . . . . . . . . . . . . . 6 . 2 Corrupt 1 | . . . . . . . . . . . . . . . . . . . . . . . . . . . 1 Sever 2 | . . . . . . . . . . . . . . . . . 1 . . . . . . . . . 1 Melee Attacks 12 | . . . . . . . . . . . . . . . . 10 . . 1 . . . . . . . 1 Impact . | . . . . . . . . . . . . . . . . . . . . . . . . . . . . Slashing . | . . . . . . . . . . . . . . . . . . . . . . . . . . . . Piercing 12 | . . . . . . . . . . . . . . . . 10 . . 1 . . . . . . . 1 Sneak Attacks . | . . . . . . . . . . . . . . . . . . . . . . . . . . . . Combat Hostiles . | . . . . . . . . . . . . . . . . . . . . . . . . . . . . Follow-up Attacks . | . . . . . . . . . . . . . . . . . . . . . . . . . . . . Damage Inflicted 49187 | 63 843 479 1549 408 1636 856 3924 4330 1090 307 . 1291 3889 1507 784 967 282 . 1425 3974 1845 1460 233 441 2646 2279 10679 Guns 13250 | 63 612 368 1250 245 1531 856 2411 . . . . . 3505 1507 784 . . . . 103 . 15 . . . . . Cannons 20215 | . . . . . . . 1233 2848 808 186 . 1075 254 . . 159 66 . 618 3508 30 289 . 60 1342 2279 5460 Explosions 15042 | . 231 111 276 149 105 . 280 1482 282 121 . 216 130 . . 453 184 . 735 363 1815 1156 233 381 1304 . 5035 Melee 235 | . . . . . . . . . . . . . . . . 235 . . . . . . . . . . . Ramming 41 | . . . 23 14 . . . . . . . . . . . . . . . . . . . . . . 4 Kinetic 15208 | 28 612 368 851 . 1531 856 2411 . . . . . . . . . . . . 103 . 15 . . 1342 2279 4812 Thermal 19438 | 35 . . 188 149 . . 1233 2848 808 186 . 1075 3759 1507 784 159 66 . 618 3871 30 289 . 60 469 . 1304 Explosive 12735 | . 231 111 88 . 105 . 280 1482 282 121 . 216 130 . . 453 184 . 735 . 1815 1156 233 381 835 . 3897 Electromagnetic 1126 | . . . 399 245 . . . . . . . . . . . . . . . . . . . . . . 482 Impact . | . . . . . . . . . . . . . . . . . . . . . . . . . . . . Slashing 404 | . . . . . . . . . . . . . . . . 120 32 . 72 . . . . . . . 180 Piercing 235 | . . . . . . . . . . . . . . . . 235 . . . . . . . . . . . Highest Corruption 5 | . 2 2 . . . 1 . 1 1 1 1 . 5 5 5 5 5 5 5 . . . . . . . . Average Corruption 2 | . 2 2 . . . 1 . 1 1 1 1 . 2 5 5 5 5 5 5 . . . . . . . . Corruption Purged . | . . . . . . . . . . . . . . . . . . . . . . . . . . . . Corruption Blocked . | . . . . . . . . . . . . . . . . . . . . . . . . . . . . Effects 183 | . 9 27 . . . 10 . 8 7 9 . . 7 24 25 18 17 5 17 . . . . . . . . Message Errors 41 | . 3 9 . . . 1 . 2 . 2 . . 4 4 5 1 3 2 5 . . . . . . . . Matter Fused 46 | . 2 5 . . . 2 . 2 2 3 . . . 9 6 3 5 2 5 . . . . . . . . Heat Flow Errors 30 | . 1 2 . . . 2 . 2 3 1 . . 2 4 3 7 2 . 1 . . . . . . . . Energy Discharges 15 | . . 3 . . . 2 . . . . . . . 2 1 2 3 . 2 . . . . . . . . Parts Rejected 2 | . . 1 . . . . . 1 . . . . . . . . . . . . . . . . . . . Data Loss (minor) 29 | . 2 3 . . . 2 . 1 . 2 . . . 3 6 4 2 . 4 . . . . . . . . Data Loss (major) 10 | . . 2 . . . . . . 2 . . . 1 . 1 1 2 1 . . . . . . . . . Misfires 3 | . . 1 . . . . . . . . . . . 1 1 . . . . . . . . . . . . Alerts 5 | . 1 1 . . . . . . . 1 . . . . 2 . . . . . . . . . . . . Weapon Failures 2 | . . . . . . 1 . . . . . . . 1 . . . . . . . . . . . . . Overload Shots 53 | . . . . . . . . 2 9 1 . 9 16 . 4 . . . 4 . . 2 . 2 . . 4 Effects 3 | . . . . . . . . . . . . 1 1 . . . . . . . . . . 1 . . . Heat Surge 3 | . . . . . . . . . . . . 1 1 . . . . . . . . . . 1 . . . Overflow Damage 1083 | . . . 28 . . . 76 88 10 . . 93 26 . . 45 . . 1 177 60 . . . 190 . 289 Projectiles 524 | . . . . . . . 76 43 10 . . 93 26 . . 45 . . 1 125 . . . . 33 . 72 Explosions 559 | . . . 28 . . . . 45 . . . . . . . . . . . 52 60 . . . 157 . 217 Melee . | . . . . . . . . . . . . . . . . . . . . . . . . . . . . Knockbacks 53 | . . . . . . . . . . . . . . . . . . . . . . . . . 18 1 34 Impact . | . . . . . . . . . . . . . . . . . . . . . . . . . . . . Kinetic 44 | . . . . . . . . . . . . . . . . . . . . . . . . . 18 1 25 Secondary 9 | . . . . . . . . . . . . . . . . . . . . . . . . . . . 9 Self-Inflicted Damage 489 | . . . 51 36 . . . . 24 . . . . . . . . . . 166 67 . . . 75 . 70 Shots 12 | . . . 2 1 . . . . 1 . . . . . . . . . . 2 2 . . . 1 . 3 Rammed 8 | . . . 3 4 . . . . . . . . . . . . . . . . . . . . . . 1 Targets Rammed 10 | . . . 4 5 . . . . . . . . . . . . . . . . . . . . . . 1 Kicked . | . . . . . . . . . . . . . . . . . . . . . . . . . . . . Crushed 2 | . . . 1 1 . . . . . . . . . . . . . . . . . . . . . . . Highest Temperature 659 | 40 254 226 285 149 171 339 135 380 218 206 425 221 215 272 514 245 276 . 204 36 14 42 . 202 192 . 659 Average Temperature 109 | 22 54 86 70 65 57 84 41 110 72 54 194 64 99 108 136 99 150 . 88 10 6 22 . 141 85 . 231 Received Heat Transfer 3282 | . 66 72 138 . . 36 693 433 93 51 . 84 183 . 57 192 . . 12 129 62 51 . 12 18 . 900 Effects 57 | . . . . . . 1 . 2 . . 1 . . . 10 . 3 . . . . . . . . . 40 Shutdowns 9 | . . . . . . 1 . 1 . . . . . . 2 . . . . . . . . . . . 5 Energy Bleed 4 | . . . . . . . . 1 . . . . . . 1 . . . . . . . . . . . 2 Interference 14 | . . . . . . . . . . . . . . . . . 3 . . . . . . . . . 11 Matter Decay 3 | . . . . . . . . . . . . . . . . . . . . . . . . . . . 3 Short Circuit 5 | . . . . . . . . . . . 1 . . . 1 . . . . . . . . . . . 3 Damage (minor) 4 | . . . . . . . . . . . . . . . 2 . . . . . . . . . . . 2 Damage (major) 15 | . . . . . . . . . . . . . . . 4 . . . . . . . . . . . 11 Damage (core) 3 | . . . . . . . . . . . . . . . . . . . . . . . . . . . 3 Siege Activations . | . . . . . . . . . . . . . . . . . . . . . . . . . . . . Robots Corrupted 2 | . . . . . . . . . . . . . . . . . . . . . . . . . . . 2 Combat Hostiles 2 | . . . . . . . . . . . . . . . . . . . . . . . . . . . 2 Parts Fried 8 | . . . 1 2 . . . . . . . . . . . . . . . . . . . . . . 5 Impact Corruptions . | . . . . . . . . . . . . . . . . . . . . . . . . . . . . Robots Melted 8 | . . . . . . . . 1 . . . 1 1 . . . . . . 5 . . . . . . . Combat Hostiles 6 | . . . . . . . . 1 . . . 1 1 . . . . . . 3 . . . . . . . Parts Melted 71 | . . . . 1 . . 1 10 2 . . 4 21 5 . . . . 1 25 . . . 1 . . . Heat Transferred 26133 | 75 . . 350 200 . . 1665 3755 966 259 . 1342 5286 2225 1150 250 100 . 910 5700 50 410 . 80 250 . 1110 Parts Sabotaged 3 | . . . . . . . . . . . . . . . . . . . . . . . . . . . 3 Parts Stolen . | . . . . . . . . . . . . . . . . . . . . . . . . . . . . Parts Stripped . | . . . . . . . . . . . . . . . . . . . . . . . . . . . . Power Chain Reactions 6 | . . . 3 2 . . . . . . . . . . . . . . . . . . . . . . 1 Missiles Intercepted . | . . . . . . . . . . . . . . . . . . . . . . . . . . . . Alert | -11 -10 -10 -9 -9 -9 -8 -8 -7 -7 -7 -7 -6 -6 -6 -6 -6 -6 -6 -5 -5 -5 -5 -5 -4 -4 -4 -4 ------- Run | Scr Mat Min Mat Min Exi Min Mat Fac Low Low Zio Pro Fac Was Fac Low Low Dat Pro Fac Upp Upp War Pro Fac Was Fac Peak Influence 1425 | 15 282 185 392 269 . 75 319 788 . . . . 357 124 768 . . . . 811 . . . . 709 308 1425 Initial 248 | . 9 18 5 98 . . . 69 . . . . 30 124 . . . . . 126 . . . . 37 248 75 Average 232 | 3 96 23 201 91 . 20 138 282 . . . . 177 53 388 . . . . 626 . . . . 289 250 825 Maximum Alert Level 4 | . 1 . 1 1 . . 1 3 . . . . 1 . 3 . . . . 3 . . . . 3 1 4 Low Security (%) 64 | 100 89 100 35 90 . 100 88 42 . . . . 73 100 22 . . . . . . . . . 42 20 17 Level 1 18 | . 10 . 64 9 . . 11 38 . . . . 26 . 35 . . . . 4 . . . . 21 79 4 Level 2 10 | . . . . . . . . 15 . . . . . . 31 . . . . 71 . . . . 26 . 14 Level 3 5 | . . . . . . . . 3 . . . . . . 10 . . . . 23 . . . . 9 . 35 Level 4 1 | . . . . . . . . . . . . . . . . . . . . . . . . . . . 28 Level 5 . | . . . . . . . . . . . . . . . . . . . . . . . . . . . . High Security . | . . . . . . . . . . . . . . . . . . . . . . . . . . . . Max Security . | . . . . . . . . . . . . . . . . . . . . . . . . . . . . Squads Dispatched 53 | . 2 . 1 . . . 3 9 . . . . 6 . 7 . . . . 9 . . . . 3 . 13 Investigation 11 | . 1 . . . . . . 3 . . . . 1 . 1 . . . . 3 . . . . 1 . 1 Extermination 11 | . . . . . . . . 3 . . . . 4 . 1 . . . . 1 . . . . 1 . 1 Reinforcement 22 | . 1 . 1 . . . 3 2 . . . . 1 . 4 . . . . 4 . . . . 1 . 5 Assault 6 | . . . . . . . . 1 . . . . . . 1 . . . . 1 . . . . . . 3 Garrison 3 | . . . . . . . . . . . . . . . . . . . . . . . . . . . 3 Intercept . | . . . . . . . . . . . . . . . . . . . . . . . . . . . . Searches Triggered . | . . . . . . . . . . . . . . . . . . . . . . . . . . . . Data Miner Redirects 6 | . . . . . . . . . . . . . . . . . . . . 2 . . . . 1 . 3 Construction Impeded 4 | . . . . . . . . . . . . . . . 1 . . . . 1 . . . . . . 2 Haulers Reinforced 4 | . . . . . . . . . . . . . . . 1 . . . . 1 . . . . . . 2 Active Scanning Responses . | . . . . . . . . . . . . . . . . . . . . . . . . . . . . Cargo Convoy Interrupts 3 | . . . . . . . . . . . . . 1 . 1 . . . . . . . . . . . 1 Stealth | -11 -10 -10 -9 -9 -9 -8 -8 -7 -7 -7 -7 -6 -6 -6 -6 -6 -6 -6 -5 -5 -5 -5 -5 -4 -4 -4 -4 --------- Run | Scr Mat Min Mat Min Exi Min Mat Fac Low Low Zio Pro Fac Was Fac Low Low Dat Pro Fac Upp Upp War Pro Fac Was Fac Distress Signals 14 | . 1 . 1 . . . 4 . . . . . . . 1 . . . . 1 . . 2 . . . 4 Communications Jammed 54 | . . . . . . . . 13 . . . . 41 . . . . . . . . . . . . . . Distress Signals 49 | . . . . . . . . 13 . . . . 36 . . . . . . . . . . . . . . Times Spotted 423 | . 17 9 24 5 19 10 43 47 6 3 . 15 34 5 15 8 3 . 14 30 6 9 9 3 19 6 64 Peak Tracking Total 11 | . 5 3 6 3 9 4 11 6 4 2 . 2 8 2 4 4 3 . 4 4 5 4 6 3 7 2 10 Tactical Retreats 17 | . . . 1 1 4 2 3 . . . . . . . . . . . . 2 . . 1 . 1 . 2 Traps | -11 -10 -10 -9 -9 -9 -8 -8 -7 -7 -7 -7 -6 -6 -6 -6 -6 -6 -6 -5 -5 -5 -5 -5 -4 -4 -4 -4 ------- Run | Scr Mat Min Mat Min Exi Min Mat Fac Low Low Zio Pro Fac Was Fac Low Low Dat Pro Fac Upp Upp War Pro Fac Was Fac Traps Triggered 11 | . 2 . . . . . . 2 . . . . 1 . 2 . . . . 1 . . . . 1 . 2 Indirectly . | . . . . . . . . . . . . . . . . . . . . . . . . . . . . Trap Hack Attempts . | . . . . . . . . . . . . . . . . . . . . . . . . . . . . Triggered . | . . . . . . . . . . . . . . . . . . . . . . . . . . . . Disarmed . | . . . . . . . . . . . . . . . . . . . . . . . . . . . . Reprogrammed . | . . . . . . . . . . . . . . . . . . . . . . . . . . . . Reused 2 | . . . . . . . . . . . . . . . . . . . . . . . . . . . 2 Traps Extracted 1 | . . . . . . . . . . 1 . . . . . . . . . . . . . . . . . Installed 5 | . . . . . . . . . . . . . . . . . . . . . . . . . . . 5 Triggered 13 | . . . . . . . . . . . . . . . 1 . . . . . . . 9 . . . 3 Fabricated Traps 5 | . . . . . . . . . . . . 5 . . . . . . . . . . . . . . . Most Traps Carried 6 | . . . . . . . . . . 1 1 6 6 6 6 6 6 6 6 6 6 6 6 6 6 6 6 Exploded 3 | . . . . . 3 . . . . . . . . . . . . . . . . . . . . . . Machines | -11 -10 -10 -9 -9 -9 -8 -8 -7 -7 -7 -7 -6 -6 -6 -6 -6 -6 -6 -5 -5 -5 -5 -5 -4 -4 -4 -4 ---------- Run | Scr Mat Min Mat Min Exi Min Mat Fac Low Low Zio Pro Fac Was Fac Low Low Dat Pro Fac Upp Upp War Pro Fac Was Fac Machines Disabled 68 | . . . . 1 9 1 1 6 . . . . 5 . . . . . . 9 . . . . 19 . 17 Max in Single Turn 8 | . . . . 1 2 1 1 4 . . . . 2 . . . . . . 4 . . . . 8 . 6 Garrison Access 2 | . . . . . . . 1 . . . . . . . . . . . . . . . . . . . 1 Machines Sabotaged . | . . . . . . . . . . . . . . . . . . . . . . . . . . . . Garrisons Compromised 1 | . . . . . . . . . . . . . . . 1 . . . . . . . . . . . . Overloaded Fab Kills . | . . . . . . . . . . . . . . . . . . . . . . . . . . . . Hacking | -11 -10 -10 -9 -9 -9 -8 -8 -7 -7 -7 -7 -6 -6 -6 -6 -6 -6 -6 -5 -5 -5 -5 -5 -4 -4 -4 -4 --------- Run | Scr Mat Min Mat Min Exi Min Mat Fac Low Low Zio Pro Fac Was Fac Low Low Dat Pro Fac Upp Upp War Pro Fac Was Fac Machines Accessed 63 | . 4 . 2 . 2 . 9 10 . 1 1 . 7 . 6 1 1 4 . 6 . . 4 1 2 . 2 Terminals 35 | . 3 . 2 . . . 5 7 . . . . 6 . 5 . . . . 3 . . . 1 1 . 2 Fabricators 4 | . . . . . . . . 1 . . . . 1 . . . . . . 1 . . . . 1 . . Repair Stations 6 | . 1 . . . . . 2 1 . . . . . . 1 . . . . 1 . . . . . . . Recycling Units 1 | . . . . . . . . 1 . . . . . . . . . . . . . . . . . . . Scanalyzers 2 | . . . . . . . 1 . . . . . . . . . . . . 1 . . . . . . . Garrison Access 1 | . . . . . . . 1 . . . . . . . . . . . . . . . . . . . . Total Hacks 225 | . 9 . 13 . 2 . 42 37 . 1 4 . 18 . 28 1 1 23 . 18 . . 15 1 4 . 8 Successful 158 | . 4 . 6 . 2 . 32 20 . 1 4 . 12 . 13 1 1 23 . 16 . . 15 1 2 . 5 Failed 67 | . 5 . 7 . . . 10 17 . . . . 6 . 15 . . . . 2 . . . . 2 . 3 Catastrophic 5 | . . . 1 . . . . . . . . . 1 . 1 . . . . . . . . . 1 . 1 Database Lockouts . | . . . . . . . . . . . . . . . . . . . . . . . . . . . . Manual 72 | . 2 . 13 . 1 . 15 8 . . . . 7 . 21 . . . . 1 . . 1 . 2 . 1 Terminals 130 | . 7 . 13 . . . 24 24 . . . . 16 . 26 . . . . 9 . . . 1 2 . 8 Fabricators 8 | . . . . . . . . 2 . . . . 2 . . . . . . 2 . . . . 2 . . Repair Stations 28 | . 2 . . . . . 10 10 . . . . . . 2 . . . . 4 . . . . . . . Recycling Units 1 | . . . . . . . . 1 . . . . . . . . . . . . . . . . . . . Scanalyzers 10 | . . . . . . . 7 . . . . . . . . . . . . 3 . . . . . . . Garrison Access 1 | . . . . . . . 1 . . . . . . . . . . . . . . . . . . . . Terminal Hacks 108 | . 2 . 4 . 2 . 14 10 . 1 4 . 8 . 9 1 1 23 . 8 . . 15 1 . . 5 Record 17 | . . . . . 1 . . . . . . . . . . . . 7 . . . . 8 1 . . . Part Schematic 20 | . . . . . . . 4 2 . . 4 . 1 . . . . 9 . . . . . . . . . Robot Schematic 4 | . . . . . . . . . . . . . . . . . . 4 . . . . . . . . . Robot Analysis 9 | . 1 . 2 . . . 2 1 . . . . . . 2 . . . . 1 . . . . . . . Prototype ID Bank 17 | . . . 1 . . . 1 2 . . . . 2 . 1 . . 3 . 1 . . 6 . . . . Open Door 4 | . . . . . . . . . . 1 . . . . . 1 1 . . . . . 1 . . . . Branch Access Points 5 | . . . . . . . 1 1 . . . . 1 . 1 . . . . 1 . . . . . . . Terminal Index 3 | . . . 1 . . . 1 . . . . . . . 1 . . . . . . . . . . . . Repair Station Index 2 | . . . . . . . 1 . . . . . . . . . . . . 1 . . . . . . . Alert Level 4 | . . . . . . . 1 . . . . . 1 . . . . . . 1 . . . . . . 1 Unreport Threat 4 | . . . . . . . 1 . . . . . . . . . . . . 1 . . . . . . 2 Locate Traps 12 | . 1 . . . . . 1 3 . . . . 2 . 2 . . . . 2 . . . . . . 1 Maintenance Status 1 | . . . . . . . . 1 . . . . . . . . . . . . . . . . . . . Transport Status 1 | . . . . . . . . . . . . . . . 1 . . . . . . . . . . . . Hauler Manifests 3 | . . . . . . . 1 . . . . . . . 1 . . . . . . . . . . . 1 Registered Prototypes 1 | . . . . . . . . . . . . . 1 . . . . . . . . . . . . . . EX-Prototype ID Bank 1 | . . . . . 1 . . . . . . . . . . . . . . . . . . . . . . Fabricator Hacks 8 | . . . . . . . . 2 . . . . 2 . . . . . . 2 . . . . 2 . . Load Schematic 4 | . . . . . . . . 1 . . . . 1 . . . . . . 1 . . . . 1 . . Build 4 | . . . . . . . . 1 . . . . 1 . . . . . . 1 . . . . 1 . . Repair Station Hacks 19 | . 2 . . . . . 9 5 . . . . . . . . . . . 3 . . . . . . . Scan Component 11 | . 1 . . . . . 5 3 . . . . . . . . . . . 2 . . . . . . . Repair 8 | . 1 . . . . . 4 2 . . . . . . . . . . . 1 . . . . . . . Recycling Unit Hacks . | . . . . . . . . . . . . . . . . . . . . . . . . . . . . Scanalyzer 9 | . . . . . . . 6 . . . . . . . . . . . . 3 . . . . . . . Insert Component 5 | . . . . . . . 3 . . . . . . . . . . . . 2 . . . . . . . Analyze 4 | . . . . . . . 3 . . . . . . . . . . . . 1 . . . . . . . Garrison Access Hacks 1 | . . . . . . . 1 . . . . . . . . . . . . . . . . . . . . Seal Access 1 | . . . . . . . 1 . . . . . . . . . . . . . . . . . . . . Unauthorized Hacks 13 | . . . 2 . . . 2 3 . . . . 2 . 4 . . . . . . . . . . . . Terminals 12 | . . . 2 . . . 2 2 . . . . 2 . 4 . . . . . . . . . . . . Assimilate 1 | . . . . . . . . . . . . . . . 1 . . . . . . . . . . . . Botnet 7 | . . . 1 . . . . 2 . . . . 2 . 2 . . . . . . . . . . . . Disrupt 1 | . . . . . . . 1 . . . . . . . . . . . . . . . . . . . . Operators 3 | . . . 1 . . . 1 . . . . . . . 1 . . . . . . . . . . . . Fabricators . | . . . . . . . . . . . . . . . . . . . . . . . . . . . . Repair Stations . | . . . . . . . . . . . . . . . . . . . . . . . . . . . . Recycling Units 1 | . . . . . . . . 1 . . . . . . . . . . . . . . . . . . . Tunnel 1 | . . . . . . . . 1 . . . . . . . . . . . . . . . . . . . Scanalyzers . | . . . . . . . . . . . . . . . . . . . . . . . . . . . . Garrison Access . | . . . . . . . . . . . . . . . . . . . . . . . . . . . . Data Cores Recovered 1 | . . . . . . . . . . . . . . . 1 . . . . . . . . . . . . Used 1 | . . . . . . . . . . . . . . . 1 . . . . . . . . . . . . Hacking Detections 44 | . 4 . 2 . . . 8 9 . . . . 6 . 5 . . . . 6 . . . . 2 . 2 Full Trace Events 8 | . . . . . . . . 2 . . . . 1 . . . . . . 3 . . . . 1 . 1 Feedback Events . | . . . . . . . . . . . . . . . . . . . . . . . . . . . . Feedback Blocked . | . . . . . . . . . . . . . . . . . . . . . . . . . . . . Robot Schematics Acquired 7 | . . . . . . . . . . . 3 . . . . . . 4 . . . . . . . . . Robots Built . | . . . . . . . . . . . . . . . . . . . . . . . . . . . . Authchips . | . . . . . . . . . . . . . . . . . . . . . . . . . . . . Time . | . . . . . . . . . . . . . . . . . . . . . . . . . . . . Total Robot Build Rating . | . . . . . . . . . . . . . . . . . . . . . . . . . . . . Part Schematics Acquired 38 | . . . . . . . 6 2 . . 20 . 1 . . . . 9 . . . . . . . . . Parts Built 5 | . . . . . . . . 1 . . . . 2 . . . . . . 2 . . . . . . . Authchips . | . . . . . . . . . . . . . . . . . . . . . . . . . . . . Time 290 | . . . . . . . . 51 . . . . 28 . . . . . . 42 . . . . 169 . . Total Part Build Rating 17 | . . . . . . . . 1 . . . . 8 . . . . . . 8 . . . . . . . Parts Repaired 8 | . 1 . . . . . 4 2 . . . . . . . . . . . 1 . . . . . . . Time 309 | . 32 . . . . . 196 41 . . . . . . . . . . . 40 . . . . . . . Parts Recycled . | . . . . . . . . . . . . . . . . . . . . . . . . . . . . Recycled Matter . | . . . . . . . . . . . . . . . . . . . . . . . . . . . . Retrieved Matter . | . . . . . . . . . . . . . . . . . . . . . . . . . . . . Retrieved Components . | . . . . . . . . . . . . . . . . . . . . . . . . . . . . Parts Scanalyzed 3 | . . . . . . . 2 . . . . . . . . . . . . 1 . . . . . . . Part Schematics Acquired 2 | . . . . . . . 2 . . . . . . . . . . . . . . . . . . . . Parts Damaged . | . . . . . . . . . . . . . . . . . . . . . . . . . . . . Bothacking | -11 -10 -10 -9 -9 -9 -8 -8 -7 -7 -7 -7 -6 -6 -6 -6 -6 -6 -6 -5 -5 -5 -5 -5 -4 -4 -4 -4 ------------ Run | Scr Mat Min Mat Min Exi Min Mat Fac Low Low Zio Pro Fac Was Fac Low Low Dat Pro Fac Upp Upp War Pro Fac Was Fac Used RIF Installer . | . . . . . . . . . . . . . . . . . . . . . . . . . . . . Robots Hacked 1 | . . . . . . . . . . . . . 1 . . . . . . . . . . . . . . Non-combat 1 | . . . . . . . . . . . . . 1 . . . . . . . . . . . . . . Combat . | . . . . . . . . . . . . . . . . . . . . . . . . . . . . Robot Hacks Applied 1 | . . . . . . . . . . . . . 1 . . . . . . . . . . . . . . find_chute 1 | . . . . . . . . . . . . . 1 . . . . . . . . . . . . . . Relay Couplers Released . | . . . . . . . . . . . . . . . . . . . . . . . . . . . . Fabnet Peak Effective % . | . . . . . . . . . . . . . . . . . . . . . . . . . . . . Robots Rewired . | . . . . . . . . . . . . . . . . . . . . . . . . . . . . Allies Hacked . | . . . . . . . . . . . . . . . . . . . . . . . . . . . . Hacks Repelled . | . . . . . . . . . . . . . . . . . . . . . . . . . . . . Allies | -11 -10 -10 -9 -9 -9 -8 -8 -7 -7 -7 -7 -6 -6 -6 -6 -6 -6 -6 -5 -5 -5 -5 -5 -4 -4 -4 -4 -------- Run | Scr Mat Min Mat Min Exi Min Mat Fac Low Low Zio Pro Fac Was Fac Low Low Dat Pro Fac Upp Upp War Pro Fac Was Fac Total Allies 29 | . . 3 . . . . . . . . 5 . . 19 . . . . 1 . . . . . . 1 . Largest Group 19 | . . 3 . . . . . . . . 5 5 . 19 17 . . . 1 . . . . . . 1 . Highest-Rated Group 702 | . . 40 . . . . . . . . 132 132 . 702 602 . . . 96 . . . . . . 46 . Highest-Rated Ally 96 | . . 16 . . . . . . . . 31 31 . 50 46 . . . 96 . . . . . . 46 . Total Orders 1 | . . . . . . . . . . . 1 . . . . . . . . . . . . . . . . RETURN 1 | . . . . . . . . . . . 1 . . . . . . . . . . . . . . . . Ally Attacks 191 | . . 15 . . . . . . . . . 20 . . 125 . . . 10 . . . . . . 21 . Total Damage 4294 | . . 141 . . . . . . . . . 382 . . 3030 . . . 287 . . . . . . 454 . Kills 35 | . . 2 . . . . . . . . . 2 . . 28 . . . 3 . . . . . . . . Allies Corrupted . | . . . . . . . . . . . . . . . . . . . . . . . . . . . . Allies Melted . | . . . . . . . . . . . . . . . . . . . . . . . . . . . . Intel | -11 -10 -10 -9 -9 -9 -8 -8 -7 -7 -7 -7 -6 -6 -6 -6 -6 -6 -6 -5 -5 -5 -5 -5 -4 -4 -4 -4 ------- Run | Scr Mat Min Mat Min Exi Min Mat Fac Low Low Zio Pro Fac Was Fac Low Low Dat Pro Fac Upp Upp War Pro Fac Was Fac Robot Analysis Total 9 | . 1 . 2 . . . 2 1 . . . . . . 2 . . . . 1 . . . . . . . Derelict Logs Recovered 15 | . . 2 . . . . . . 2 2 . 1 . . . 2 1 . . . 1 2 . 2 . . . Drone Launches 1 | . . . . . . . . . . . 1 . . . . . . . . . . . . . . . . Drone Recoveries 1 | . . . . . . . . . . . 1 . . . . . . . . . . . . . . . . Exploration | -11 -10 -10 -9 -9 -9 -8 -8 -7 -7 -7 -7 -6 -6 -6 -6 -6 -6 -6 -5 -5 -5 -5 -5 -4 -4 -4 -4 ------------- Run | Scr Mat Min Mat Min Exi Min Mat Fac Low Low Zio Pro Fac Was Fac Low Low Dat Pro Fac Upp Upp War Pro Fac Was Fac Turns Passed 33674 | 69 896 1448 835 1256 2553 1233 3314 2242 1426 1564 2741 1213 1563 933 1051 680 743 162 795 1267 750 567 1422 657 686 501 1107 Spaces Moved 16460 | 49 456 555 331 504 1063 643 1546 1259 845 832 1657 630 623 510 541 322 381 87 382 495 412 305 762 367 295 219 389 Core 14 | 3 . . . . . . . . . . . . 10 . . . . . . . . . . . . . 1 Treads 1442 | . 94 . 211 504 568 65 . . . . . . . . . . . . . . . . . . . . . Legs . | . . . . . . . . . . . . . . . . . . . . . . . . . . . . Wheels 15004 | 46 362 555 120 . 495 578 1546 1259 845 832 1657 630 613 510 541 322 381 87 382 495 412 305 762 367 295 219 388 Hover . | . . . . . . . . . . . . . . . . . . . . . . . . . . . . Flight . | . . . . . . . . . . . . . . . . . . . . . . . . . . . . Fastest Speed 50 | 50 80 95 95 240 170 110 115 130 160 160 145 160 145 145 175 175 190 175 190 175 175 175 175 175 190 175 145 Average Speed 167 | 78 100 95 179 240 215 161 141 150 160 160 158 160 184 160 176 189 190 178 190 180 175 175 175 175 190 199 188 Slowest Speed 2050 | 80 160 95 240 240 240 240 175 160 160 160 175 160 2050 175 190 190 190 190 190 190 175 175 175 175 190 205 1600 Overloaded Moves . | . . . . . . . . . . . . . . . . . . . . . . . . . . . . Propulsion Burnouts . | . . . . . . . . . . . . . . . . . . . . . . . . . . . . Robots Hopped . | . . . . . . . . . . . . . . . . . . . . . . . . . . . . Cave-ins Triggered 1 | . . . . . . . . . . . . . . . . . . . . 1 . . . . . . . Exploration Rate (%) 60 | 4 68 98 36 97 90 91 65 33 96 93 83 76 23 95 18 61 53 69 61 18 64 56 85 53 13 86 18 Regions Visited 27 Branch Regions 16 Pre-discovered Areas 10 | . . . . . 1 . . 1 1 . 3 . . . . 1 . 1 . . 1 . . 1 . . . Known Exits Taken 6 | . . . . . . . . 1 1 . . . . . 1 1 . . . 1 . 1 . . . . . Unknown Exits Taken 17 | 1 1 1 1 1 1 1 1 . . 1 1 1 . . . . 1 1 1 . 1 . 1 1 . . . Scrap Searched 30 | . . 2 . 2 . 1 . . 3 8 3 . . . . 2 2 . 2 . 3 . . 2 . . . Spaces Dug 54 | . 4 . 2 . . . 4 5 4 4 . 3 4 . 5 . . . . 11 . . 6 . . . 2 Terrain Destroyed 1117 | . 14 2 15 12 34 11 63 74 44 14 . 22 23 . 9 51 13 . 76 77 101 77 8 5 119 23 230 Melee . | . . . . . . . . . . . . . . . . . . . . . . . . . . . . Projectile 325 | . 4 . 2 . 20 9 38 20 16 7 . 17 16 . 9 5 1 . 17 42 1 1 7 . 24 23 46 AOE 788 | . 10 2 13 12 13 . 25 54 28 7 . 5 7 . . 46 12 . 59 34 100 76 1 5 95 . 184 Terrain Rammed . | . . . . . . . . . . . . . . . . . . . . . . . . . . . . Walls Destroyed . | . . . . . . . . . . . . . . . . . . . . . . . . . . . . Machines Disabled . | . . . . . . . . . . . . . . . . . . . . . . . . . . . . Actions | -11 -10 -10 -9 -9 -9 -8 -8 -7 -7 -7 -7 -6 -6 -6 -6 -6 -6 -6 -5 -5 -5 -5 -5 -4 -4 -4 -4 --------- Run | Scr Mat Min Mat Min Exi Min Mat Fac Low Low Zio Pro Fac Was Fac Low Low Dat Pro Fac Upp Upp War Pro Fac Was Fac Total 21014 | 66 823 1437 479 529 1252 753 2440 1470 876 1039 1780 787 887 584 608 358 396 94 420 742 425 318 840 375 378 245 613 Wait 2862 | . 283 853 64 14 59 13 691 81 . 182 50 114 130 17 20 9 . . 15 141 . . 31 . 34 . 61 Move 16434 | 48 455 554 330 503 1062 642 1545 1258 844 831 1656 629 623 509 540 321 380 86 381 493 411 304 761 366 295 218 389 Hop . | . . . . . . . . . . . . . . . . . . . . . . . . . . . . Pick Up 208 | 5 17 1 13 . 21 26 22 16 4 4 13 6 19 10 2 . 3 . . 11 . . 7 . 3 1 4 Fast Attach 119 | 7 4 . 5 . 3 4 10 9 . 1 16 . 11 4 7 3 2 4 . 8 . . 6 2 2 1 10 Attach 100 | . . 1 4 . 10 5 10 6 2 1 8 4 9 3 4 . . . . 7 . . 2 . 6 . 18 Detach 30 | . . . 1 . 3 3 1 . . . 1 . 3 1 3 1 . . . 1 . . 1 . 3 2 6 Swap 159 | 1 17 4 11 . 12 11 20 16 2 5 2 4 5 3 . 6 5 . 9 3 3 2 4 . 7 . 7 Drop 255 | . 13 . 9 . 26 10 30 17 3 4 32 5 25 21 7 1 4 4 . 12 . . 14 2 5 3 8 Fire 803 | 5 34 24 38 7 56 39 111 67 21 11 2 25 62 16 17 7 2 . 14 57 11 12 14 5 23 20 103 Melee 12 | . . . . . . . . . . . . . . . . 10 . . 1 . . . . . . . 1 Ram 1 | . . . . . . . . . . . . . . . . . . . . . . . . . . . 1 Kick . | . . . . . . . . . . . . . . . . . . . . . . . . . . . . Crush 9 | . . . 4 5 . . . . . . . . . . . . . . . . . . . . . . . Escape Stasis 17 | . . . . . . . . . . . . . . . 8 . . . . 9 . . . . . . . Rewire . | . . . . . . . . . . . . . . . . . . . . . . . . . . . . Trap 5 | . . . . . . . . . . . . . . . . . . . . . . . . . . . 5 Miscellaneous . | . . . . . . . . . . . . . . . . . . . . . . . . . . . . Route ------- -11/Scrapyard -10/Materials (discovered 2 exits: *Mat / [*Min]) -10/Mines (discovered 2 exits: *Mat x2) -9/Materials (discovered 2 exits: *Mat / [*Min]) -9/Mines (discovered 3 exits: *Mat x2 / *Exi) -9/Exiles -8/Mines (discovered 2 exits: *Mat x2) -8/Materials (discovered 2 exits: *Fac x2) -7/Factory (discovered 5 exits: *Fac x2 / Sto / *Low x2) -7/Lower Caves -7/Lower Caves (discovered 2 exits: *Fac / *Zio) -7/Zion -6/Proximity Caves -6/Factory (discovered 3 exits: *Fac / *Low x2) -6/Waste -6/Factory (discovered 3 exits: *Fac / *Low x2) -6/Lower Caves -6/Lower Caves -6/Data Miner -5/Proximity Caves -5/Factory (discovered 3 exits: *Fac / *Upp x2) -5/Upper Caves -5/Upper Caves (discovered 2 exits: *Fac / *War) -5/Warlord -4/Proximity Caves -4/Factory -4/Waste -4/Factory History --------- Turn | Location | Event 8 | -11/Scrapyard | Discovered new exit (range 15) 70 | -11/Scrapyard | Entered Materials 268 | -10/Materials | Discovered new exit (range 15) 304 | -10/Materials | Build established: Mutant 838 | -10/Materials | Discovered new exit (range 9) 941 | -10/Materials | Repaired Imp. Treads 966 | -10/Materials | Entered Mines 970 | -10/Mines | Assisted by bots powering up and referring to "LRC-V3" 1138 | -10/Mines | Discovered new exit (range 9) 1207 | -10/Mines | Learned Materials garrison access intel 1230 | -10/Mines | Discovered new exit (range 13) 1313 | -10/Mines | Assembled infested the area 2333 | -10/Mines | Core integrity fell below 50% 2414 | -10/Mines | Entered Materials 2414 | -9/Materials | Evolved 2 slots: Utility x1, Weapon x1 2716 | -9/Materials | Build established: Tank 2947 | -9/Materials | Discovered new exit (range 16) 3157 | -9/Materials | Discovered new exit (range 6) 3249 | -9/Materials | Entered Mines 3326 | -9/Mines | Discovered new exit (range 7) 3453 | -9/Mines | Deemed a non-threat by the Exiles lab entrance 3663 | -9/Mines | Discovered new exit (range 9) 4493 | -9/Mines | Discovered new exit (range 5) 4505 | -9/Mines | Entered Exiles 4570 | -9/Exiles | Met 8R-AWN 4609 | -9/Exiles | Met EX-HEX 4745 | -9/Exiles | Met EX-DEC 4789 | -9/Exiles | Learned location of Zion (-7) 5034 | -9/Exiles | Met EX-BIN 5068 | -9/Exiles | Aligned with FarCom system 5070 | -9/Exiles | Given EX-Vault access code 5128 | -9/Exiles | Opened EX-Vault 5146 | -9/Exiles | Found AWS/Gauss 5199 | -9/Exiles | Warned to stay clear of 0b10 Research branches 5364 | -9/Exiles | Discovered new exit (range 10) 5447 | -9/Exiles | Build established: Mutant 5734 | -9/Exiles | Attacked by the Exiles 5866 | -9/Exiles | Destroyed 8R-AWN 5880 | -9/Exiles | Found Prototype Ballistic Gun 5880 | -9/Exiles | Identified 8R-AWN's Boregun 5920 | -9/Exiles | Found Prototype Protection 6109 | -9/Exiles | Destroyed EX-BIN 6162 | -9/Exiles | Destroyed EX-DEC 6275 | -9/Exiles | Destroyed EX-HEX 6355 | -9/Exiles | Found Prototype Processor 6447 | -9/Exiles | Build established: Tank 7058 | -9/Exiles | Entered Mines 7086 | -8/Mines | Identified 8R-AWN's Armor/EX 7121 | -8/Mines | ME-RLN came to Exiles' defense 7234 | -8/Mines | Discovered new exit (range 8) 7506 | -8/Mines | Found Prototype Hackware 7512 | -8/Mines | Found Prototype Device 7513 | -8/Mines | Identified ME-RLN's Chromatic Screen 7524 | -8/Mines | Found Prototype Hackware 7527 | -8/Mines | Found Prototype Special Weapon 7528 | -8/Mines | Identified ME-RLN's Wand 7702 | -8/Mines | Discovered new exit (range 8) 8291 | -8/Mines | Entered Materials 8291 | -8/Materials | Evolved 2 slots: Utility x2 8292 | -8/Materials | Loaded intel: 1 garrison access location 8582 | -8/Materials | Build established: Scavenger-Tank 8633 | -8/Materials | Destroyed 9 combat bots 8902 | -8/Materials | Repaired Imp. Assault Rifle? 8981 | -8/Materials | Repaired Imp. Light Armor Plating 9556 | -8/Materials | Repaired Imp. Assault Rifle 9620 | -8/Materials | Repaired Rnf. Fission Core 9730 | -8/Materials | Discovered new exit (range 16) 9875 | -8/Materials | Build established: Hacker-Gunner 10240 | -8/Materials | Discovered new exit (range 13) 10302 | -8/Materials | Identified System Mapper 10805 | -8/Materials | Identified Ghost Barrier 11242 | -8/Materials | Build established: Hacker-Tank 11605 | -8/Materials | Entered Factory 11605 | -7/Factory | Evolved 2 slots: Utility x2 11667 | -7/Factory | Identified exit to Storage 11667 | -7/Factory | Identified exit to Lower Caves 12444 | -7/Factory | Repaired Hrd. Medium Armor Plating 12472 | -7/Factory | Repaired Imp. Medium Armor Plating? 12588 | -7/Factory | Fabricated Huge Storage Unit? 12964 | -7/Factory | Build established: Scavenger-Tank 13445 | -7/Factory | Destroyed 8 combat bots 13457 | -7/Factory | Discovered new exit (range 12) 13578 | -7/Factory | Discovered new exit (range 10) 13605 | -7/Factory | First assault squad dispatched 13847 | -7/Factory | Entered Lower Caves 13893 | -7/Lower Caves | Attracted the attention of an 0b10 outpost 14011 | -7/Lower Caves | Identified exit to Lower Caves 14417 | -7/Lower Caves | Build established: Scavenger-Mutant 14468 | -7/Lower Caves | Attracted the attention of an 0b10 checkpoint 14562 | -7/Lower Caves | Spotted B-75 Beast 14654 | -7/Lower Caves | Encountered a Warlord checkpoint 14758 | -7/Lower Caves | Build established: Scavenger-Tank 15273 | -7/Lower Caves | Entered another Lower Caves area 15295 | -7/Lower Caves | Discovered new exit (range 10) 15669 | -7/Lower Caves | Learned Factory emergency access door positions 16062 | -7/Lower Caves | Attracted the attention of an 0b10 checkpoint 16104 | -7/Lower Caves | Learned Factory terminal intel 16151 | -7/Lower Caves | Encountered a Warlord checkpoint 16798 | -7/Lower Caves | Discovered new exit (range 13) 16837 | -7/Lower Caves | Entered Zion 16937 | -7/Zion | System corruption cleaned by Quarantine Array 16996 | -7/Zion | Learned location of Quarantine (-2) 17017 | -7/Zion | Learned location of Warlord (-5) 17055 | -7/Zion | Found Prototype Device 17055 | -7/Zion | Identified Bomb Factory No. 2 17106 | -7/Zion | Gained Derelict followers 17155 | -7/Zion | Learned location of Recycling (-7) 17268 | -7/Zion | Found Prototype Special Weapon 17268 | -7/Zion | Identified RU-N14's Throwing Claymores 17616 | -7/Zion | Build established: Scavenger-Mutant 17832 | -7/Zion | Given the Hacking Drone Bay 17873 | -7/Zion | Found Prototype Device 17873 | -7/Zion | Identified Hacking Drone Bay 18399 | -7/Zion | Found Prototype Processor 18399 | -7/Zion | Identified Spectral Analyzer 18463 | -7/Zion | Found Prototype Processor 18463 | -7/Zion | Identified Exp. Signal Interpreter 18469 | -7/Zion | Found Prototype Processor 18469 | -7/Zion | Identified Exp. Targeting Computer 18484 | -7/Zion | Found Prototype Processor 18484 | -7/Zion | Identified Exp. Armor Integrity Analyzer 18701 | -7/Zion | Found RU-N14's Throwing Claymores 18704 | -7/Zion | Found RU-N14's Throwing Claymores 18706 | -7/Zion | Found RU-N14's Throwing Claymores 18905 | -7/Zion | Build established: Hacker-Tank 19028 | -7/Zion | Found Unknown Piercing Weapon 19029 | -7/Zion | Identified CR-A16's Pointy Stick 19084 | -7/Zion | Discovered new exit (range 14) 19533 | -7/Zion | Found Prototype Energy Gun 19578 | -7/Zion | Entered Proximity Caves 19578 | -6/Proximity Caves | Accompanied by 5 allies 20439 | -6/Proximity Caves | Attracted the attention of an 0b10 checkpoint 20671 | -6/Proximity Caves | Discovered new exit (range 10) 20791 | -6/Proximity Caves | Entered Factory 20791 | -6/Factory | Evolved 2 slots: Utility x1, Weapon x1 20793 | -6/Factory | Loaded intel: 26 terminal locations 20842 | -6/Factory | Identified exit to Lower Caves 20908 | -6/Factory | Discovered new exit (range 4) 20954 | -6/Factory | Identified Storm Laser 20969 | -6/Factory | Lost 3 parts (1n1u1w) 20987 | -6/Factory | Build established: Scavenger-Gunner 21895 | -6/Factory | Fabricated Arm. Huge Wheel (x2) 22263 | -6/Factory | Identified Exp. Core Analyzer 22353 | -6/Factory | Cargo convoy interrupted 22354 | -6/Factory | Sucked down chute 22354 | -6/Factory | Entered Waste 22376 | -6/Waste | Spotted C-40 Crusher 22392 | -6/Waste | Destroyed C-40 Crusher 22402 | -6/Waste | Found Damper Plating 22409 | -6/Waste | Spotted C-40 Crusher 22425 | -6/Waste | Destroyed C-40 Crusher 22467 | -6/Waste | Destroyed C-40 Crusher 22473 | -6/Waste | Spotted C-40 Crusher 22476 | -6/Waste | Destroyed C-40 Crusher 22510 | -6/Waste | Spotted C-40 Crusher 22517 | -6/Waste | Destroyed C-40 Crusher 22525 | -6/Waste | Destroyed C-40 Crusher 22679 | -6/Waste | Discovered new exit (range 16) 22890 | -6/Waste | Warlord forces began an assault 23127 | -6/Waste | Found Damper Plating 23287 | -6/Waste | Entered Factory 23287 | -6/Factory | Accompanied by 17 allies 23423 | -6/Factory | Build established: Hacker-Gunner 23796 | -6/Factory | Discovered new exit (range 16) 24138 | -6/Factory | Cargo convoy interrupted 24337 | -6/Factory | First assault squad dispatched 24338 | -6/Factory | Entered Lower Caves 24464 | -6/Lower Caves | Attracted the attention of an 0b10 checkpoint 24688 | -6/Lower Caves | Encountered a Warlord checkpoint 24695 | -6/Lower Caves | Identified exit to Lower Caves 24771 | -6/Lower Caves | Learned location of Extension (-4) 24773 | -6/Lower Caves | Build established: Scavenger-Gunner 24795 | -6/Lower Caves | Spotted B-75 Beast 24892 | -6/Lower Caves | Revealed the true nature of CR-A16's Pointy Stick 24895 | -6/Lower Caves | Destroyed B-75 Beast 25018 | -6/Lower Caves | Entered another Lower Caves area 25056 | -6/Lower Caves | Learned Factory stockpile data 25475 | -6/Lower Caves | Spotted B-75 Beast 25595 | -6/Lower Caves | Build established: Hacker-Tank 25748 | -6/Lower Caves | Discovered new exit (range 8) 25761 | -6/Lower Caves | Entered Data Miner 25761 | -6/Data Miner | Discovered new exit (range 6) 25799 | -6/Data Miner | Met Data Miner 25842 | -6/Data Miner | Learned location of Section 7 (-2) 25842 | -6/Data Miner | Acquired the access code to Warlord's prototype stash 25867 | -6/Data Miner | Received God Mode back door access code from Data Miner 25923 | -6/Data Miner | Entered Proximity Caves 25961 | -5/Proximity Caves | Escorted by Enhanced Grunt 26070 | -5/Proximity Caves | Spotted B-75 Beast 26082 | -5/Proximity Caves | Destroyed B-75 Beast 26358 | -5/Proximity Caves | Build established: Scavenger-Gunner 26658 | -5/Proximity Caves | Discovered new exit (range 10) 26718 | -5/Proximity Caves | Entered Factory 26718 | -5/Factory | Evolved 2 slots: Utility x2 26957 | -5/Factory | Crushed by falling debris 27170 | -5/Factory | Repaired Cld. Plasma Cannon 27266 | -5/Factory | Found Unknown Protection 27266 | -5/Factory | Identified Imp. Powered Armor 27271 | -5/Factory | Found Imp. Powered Armor 27276 | -5/Factory | Found Imp. Powered Armor 27305 | -5/Factory | Build established: Hacker-Tank 27324 | -5/Factory | Discovered new exit (range 2) 27414 | -5/Factory | Discovered new exit (range 5) 27494 | -5/Factory | Fabricated Arm. Huge Wheel (x2) 27712 | -5/Factory | Identified exit to Upper Caves 27752 | -5/Factory | Found Prototype Launcher 27783 | -5/Factory | Identified Mni. Smartbomb Launcher 27803 | -5/Factory | Incoming investigation squad redirected 27918 | -5/Factory | First assault squad dispatched 27933 | -5/Factory | Incoming assault squad redirected 27985 | -5/Factory | Entered Upper Caves 28711 | -5/Upper Caves | Discovered new exit (range 15) 28735 | -5/Upper Caves | Entered another Upper Caves area 28748 | -5/Upper Caves | Discovered new exit (range 8) 28763 | -5/Upper Caves | Build established: Hacker-Mutant 28961 | -5/Upper Caves | Identified exit to Warlord 28962 | -5/Upper Caves | Encountered a Warlord checkpoint 29201 | -5/Upper Caves | Attracted the attention of an 0b10 checkpoint 29293 | -5/Upper Caves | Learned Factory emergency access door positions 29302 | -5/Upper Caves | Entered Warlord 29358 | -5/Warlord | Discovered new exit (range 9) 29510 | -5/Warlord | Build established: Hacker-Tank 30233 | -5/Warlord | Warlord's base attacked by MAIN.C 30244 | -5/Warlord | Met Warlord 30258 | -5/Warlord | Build established: Hacker-Mutant 30260 | -5/Warlord | Opened Warlord's prototype stash 30271 | -5/Warlord | Found Prototype Device 30271 | -5/Warlord | Identified Exp. Cloaking Device 30280 | -5/Warlord | Found Prototype Device 30280 | -5/Warlord | Identified Thermal Barrier 30310 | -5/Warlord | Found Prototype Reactor 30583 | -5/Warlord | Warlord forces counterattacked 30679 | -5/Warlord | Opened side exit 30724 | -5/Warlord | Entered Proximity Caves 31132 | -4/Proximity Caves | Attracted the attention of an 0b10 checkpoint 31152 | -4/Proximity Caves | Discovered new exit (range 13) 31189 | -4/Proximity Caves | Learned Research security intel 31381 | -4/Proximity Caves | Entered Factory 31381 | -4/Factory | Evolved 2 slots: Power x1, Utility x1 31382 | -4/Factory | Identified exit to Extension 31382 | -4/Factory | Identified Vortex Chain Reactor 31688 | -4/Factory | Incoming investigation squad redirected 32067 | -4/Factory | Sucked down chute 32067 | -4/Factory | Entered Waste 32068 | -4/Waste | Met a frightened Derelict 32072 | -4/Waste | Build established: Hacker-Tank 32085 | -4/Waste | Spotted C-40 Crusher 32098 | -4/Waste | Destroyed C-40 Crusher 32101 | -4/Waste | Destroyed C-40 Crusher 32179 | -4/Waste | Spotted C-40 Crusher 32188 | -4/Waste | Destroyed C-40 Crusher 32212 | -4/Waste | Spotted C-40 Crusher 32225 | -4/Waste | Destroyed C-40 Crusher 32236 | -4/Waste | Spotted C-40 Crusher 32241 | -4/Waste | Destroyed C-40 Crusher 32244 | -4/Waste | Spotted C-40 Crusher 32257 | -4/Waste | Destroyed C-40 Crusher 32274 | -4/Waste | Found Damper Plating 32438 | -4/Waste | Discovered new exit (range 15) 32566 | -4/Waste | Build established: Hacker-Gunner 32568 | -4/Waste | Entered Factory 32811 | -4/Factory | Garrison activated, responded to threat 32838 | -4/Factory | Core integrity fell below 50% 32862 | -4/Factory | Destroyed 8 combat bots 32895 | -4/Factory | Spotted B-86 Titan 32920 | -4/Factory | Destroyed B-86 Titan 33108 | -4/Factory | First assault squad dispatched 33282 | -4/Factory | Lost 4 parts (1p1n2u) 33285 | -4/Factory | Destroyed 12 combat bots 33383 | -4/Factory | Build established: Hacker-Mutant 33577 | -4/Factory | Cargo convoy interrupted 33598 | -4/Factory | Incoming assault squad redirected 33615 | -4/Factory | Spotted Executioner 33622 | -4/Factory | Incoming assault squad redirected 33638 | -4/Factory | Incoming assault squad redirected 33649 | -4/Factory | Destroyed Executioner 33662 | -4/Factory | Core integrity fell below 20% 33675 | -4/Factory | Destroyed by X-77 Beamer with Gatling Laser Last Messages --------------- 33655_ Particle Accelerator destroyed. 33655_ Dropped Exp. Energy Well. 33656_ Acquired Corrupted Lrg. Battery. 33657_ G-67 Veteran IFF system glitched. 33658_ The unstable cave ceiling collapses. 33660_ Destroyed Adv. Heat Sink. 33663_ X-77 Beamer reactivates. 33663_ G-67 Veteran IFF system glitched. 33663_ Extracted 600 energy. 33666_ G-67 Veteran misfires. 33667_ The unstable cave ceiling collapses. 33670_ G-67 Veteran heat damages Lgt. Antimatter Reactor, Adv. Heat Sink. 33670_ The unstable cave ceiling collapses. 33670_ Huge Storage Unit destroyed. 33671_ X-77 Beamer misfires. 33671_ M-36 Artificer destroyed. 33672_ G-67 Veteran heat spikes uncontrollably. 33672_ G-67 Veteran overheating. 33674_ The unstable cave ceiling collapses. 33674_ G-67 Veteran overheating. Map ----- +----------------------------------------------------+ | ???????????????????????????????# #! | | ???????????????????????????????# ############# | | ???????????????????????????????# #???????????? | | ?????????????????????????? [*??# #???????????? | | ??????????????????????????[%[ ?# #??????????? | | ?????????????????????????? == [# #????????? | | ??????????????????????????? %+= #???????? ? | | ???????????????????????????? #[ #??????? ??? | | ?????????????????????????????? # #????? ???? | | ???????????????????????????????# == #???? ?????? | | ???????????????????????????????# =% ####+######+# | | ???????????????????????????????# = * | | ?????????????????## ???????????# ]%[ | | ??????????????? ##?????????# ][[=]! | | ???????# # ;########## ]*][ % | | ???????# % % ^![]%] | | ??????????##+; ;;#+# # #######]*]* #####+# | | ???????????? ## ]? ?????? | | ???????????" ""g !% # ???? | | ???????????" =# !! ?? | | ??????????? # x% !! | | ?????????? # | | ?????????????; =% = | | ????????????????# g | | ????????????????# # !||& ; ## | | ????????????????# %|@! ;#?##################+ | | ????????????????## =!!!;;#???????????????????? | | ?????????????????## # ## # #???????????????????? | | ??????????????????## #??####?#???????????????????? | | ???????????????????#?????????????????????????????? | | ?????????????????????????????????????????????????? | | ?????????????????????????????????????????????????? | | ?????????????????????????????????????????????????? | | ?????????????????????????????????????????????????? | | ?????????????????????????????????????????????????? | | ?????????????????????????????????????????????????? | | ?????????????????????????????????????????????????? | | ?????????????????????????????????????????????????? | | ?????????????????????????????????????????????????? | | ?????????????????????????????????????????????????? | | ?????????????????????????????????????????????????? | | ?????????????????????????????????????????????????? | | ?????????????????????????????????????????????????? | | ?????????????????????????????????????????????????? | | ?????????????????????????????????????????????????? | | ?????????????????????????????????????????????????? | | ?????????????????????????????????????????????????? | | ?????????????????????????????????????????????????? | | ?????????????????????????????????????????????????? | | ?????????????????????????????????????????????????? | +----------------------------------------------------+ Best States ------------- Heat Dissipation 105 Energy Generation 55 Energy Capacity 1400 Matter Stores 700 Matter Capacity 700 Sight Range 16 Terrain Scan Density 10 Jamming Range 16 Cloak Strength 4 Additional Mass Support 6 Armor Coverage 2400 Resistance: KI 20 Resistance: TH 50 Resistance: EX 90 Resistance: EM 90 Propulsion Shielding 90 Utility Shielding 66 Evasion (%) 44 Targeting Accuracy 8 Core Analysis 8 Armor Integrity Analysis 50 Recoil Reduction 2 Particle Charging 30 Offensive Hacking 34 Defensive Hacking 30 Trap Extractor Capacity 6 Item Schematics ----------------- Huge Storage Unit | -8/Materials | Hacked Hcp. Storage Unit | -8/Materials | Hacked Cmb. Antigrav System | -8/Materials | Scanalyzed Cold Fusion Reactor | -8/Materials | Scanalyzed Arm. Huge Wheel | -8/Materials | Hacked Imp. Utility Shielding | -8/Materials | Hacked Hyp. Coil Gun | -7/Factory | Hacked Adv. Sensor Array | -7/Factory | Hacked Weapon Cycler | -7/Zion | Archive Imp. Reaction Control System | -7/Zion | Archive Mak. Sword | -7/Zion | Archive Lrn. Phase Cannon | -7/Zion | Archive 0b10 Decoder Chip [Skirmisher] | -7/Zion | Archive Dynamic Insulation System | -7/Zion | Archive Neutrino Core | -7/Zion | Archive Adv. Signal Interpreter | -7/Zion | Archive Hvy. Ion Cannon | -7/Zion | Archive Remote Shield | -7/Zion | Archive Imp. Medium Armor Plating | -7/Zion | Archive Imp. Arc Projector | -7/Zion | Archive Nuclear Pulse Thruster | -7/Zion | Archive Imp. Carbon-fiber Leg | -7/Zion | Archive Mak. Hacking Suite | -7/Zion | Archive System Guard | -7/Zion | Archive Riot Gun | -7/Zion | Free Battle Rifle | -7/Zion | Free Barrage Gun | -7/Zion | Free Tactical Coordination Suite | -7/Zion | Free Quantum Capacitor | -6/Factory | Hacked Combat Drone Bay | -6/Data Miner | Free Lgt. Regenerative Plating | -6/Data Miner | Free Cld. Gravmag System | -6/Data Miner | Free Prc. Matter Filter | -6/Data Miner | Free Hvy. Gatling Laser | -6/Data Miner | Free Imp. Linear Gravjet | -6/Data Miner | Free Adv. Particle Charger | -6/Data Miner | Free Adv. Datajack | -6/Data Miner | Free Lgt. Particle Reactor | -6/Data Miner | Free Robot Schematics ------------------ Y-54 Guardian | -7/Zion | Archive A-02 Transporter | -7/Zion | Archive K-01 Serf | -7/Zion | Archive B-60 Warrior | -6/Data Miner | Free A-15 Conveyor | -6/Data Miner | Free R-10 Processor | -6/Data Miner | Free L-61 Swordsman | -6/Data Miner | Free Fabricated ------------ Huge Storage Unit | x1 | -7/Factory Arm. Huge Wheel | x2 | -6/Factory Arm. Huge Wheel | x2 | -5/Factory Alien Tech Used ----------------- None Achievements -------------- None Challenges ------------ None Game ------ Seed PhysicsAlphaCutter Manual? 0 Play Time 05:09:44 Cumulative 531.8 hours Start 2022.04.29 @ 22:10:35 End 2022.05.01 @ 02:16:01 Sessions 13 Manual Loads 0 Difficulty Rogue Special Mode None Game No. 172 Rogue 168 Adventurer 4 Explorer 0 Win Type - Total 13 Types 6/2/3/0/0/0/1/1/0 Lore% 82 Gallery% 86 Achievement% 73 Wizard Run 0 Options --------- ASCII 1 Keyboard 0 Movement Arrows Keybinds 0 Fullscreen 1 Font 18/SmallcapsGlow Map View 76x50 Tactical HUD 1 Map Filters NONE Filters NONE Steam 1 RUN: 00599f0e-3859-4948-bc79-46a87fe1dfec